fUST/lending_fUST_20250620
["ID","MTS","AMOUNT","RATE_DAILY","PERIOD"]
[366741162,1750426938511,-460.0,0.00020272,2]
[366741163,1750426938538,-961.35,0.00020272,2]
[366741164,1750426938565,-460.0,0.00020272,2]
[366741165,1750426938592,-460.0,0.00020272,2]
[366741166,1750426938617,-500.0,0.00020273,2]
[366741167,1750426938641,-500.0,0.00020273,2]
[366741168,1750426938665,-500.0,0.00020273,2]
[366741169,1750426938689,-500.0,0.00020273,2]
[366741170,1750426938713,-500.0,0.00020273,2]
[366741171,1750426938739,-616.84278252,0.00020273,2]
[366741172,1750426938763,-500.0,0.00020273,2]
[366741173,1750426938787,-500.0,0.00020273,2]
[366741174,1750426938811,-323.57026451,0.00020273,2]
[366741175,1750426938836,-596.45854838,0.00020273,2]
[366741176,1750426938862,-500.0,0.00020284,2]
[366741177,1750426938887,-972.0,0.00020284,2]
[366741178,1750426938913,-500.0,0.00020285,2]
[366741179,1750426938938,-373.16195029,0.00020285,2]
[366741180,1750426938977,-126.83804971,0.00020285,2]
[366741181,1750426939003,-160.0,0.00020285,2]
[366741182,1750426939028,-972.0,0.00020285,2]
[366741183,1750426939054,-972.0,0.00020285,2]
[366741184,1750426939080,-500.0,0.00020286,2]
[366741185,1750426939106,-500.0,0.00020286,2]
[366741186,1750426939131,-500.0,0.00020286,2]
[366741187,1750426939158,-500.0,0.00020286,2]
[366741188,1750426939185,-972.0,0.00020286,2]
[366741189,1750426939211,-972.0,0.00020286,2]
[366741190,1750426939236,-972.0,0.00020286,2]
[366741191,1750426939262,-460.88250601,0.00020287,2]
[366741192,1750426939288,-500.0,0.00020287,2]
[366741193,1750426939314,-500.0,0.00020287,2]
[366741194,1750426939341,-350.0,0.00020287,2]
[366741195,1750426939368,-500.0,0.00020287,2]
[366741196,1750426939395,-542.27944428,0.00020287,2]
[366741197,1750426939569,-429.72055572,0.00020287,2]
[366741198,1750426939598,-972.0,0.00020287,2]
[366741199,1750426939624,-500.0,0.00020287,2]
[366741200,1750426939649,-460.0,0.00020288,2]
[366741201,1750426939674,-460.0,0.00020288,2]
[366741202,1750426939701,-460.0,0.00020288,2]
[366741203,1750426939726,-460.0,0.00020288,2]
[366741204,1750426939751,-649.55,0.00020288,2]
[366741205,1750426939776,-460.0,0.00020288,2]
[366741206,1750426939801,-460.0,0.00020288,2]
[366741207,1750426939829,-430.0,0.00020288,2]
[366741208,1750426939854,-460.0,0.00020288,2]
[366741209,1750426939879,-460.0,0.00020288,2]
[366741210,1750426939905,-460.0,0.00020288,2]
[366741211,1750426939933,-460.0,0.00020288,2]
[366741212,1750426939958,-460.0,0.00020288,2]
[366741213,1750426939983,-460.0,0.00020288,2]
[366741214,1750426940008,-460.0,0.00020288,2]
[366741215,1750426940035,-460.0,0.00020288,2]
[366741216,1750426940059,-460.0,0.00020288,2]
[366741217,1750426940086,-118.72944428,0.00020288,2]
[366741218,1750426940125,-341.27055572,0.00020288,2]
[366741219,1750426940150,-460.0,0.00020288,2]
[366741220,1750426940174,-460.0,0.00020288,2]
[366741221,1750426940199,-460.0,0.00020288,2]
[366741222,1750426940223,-460.0,0.00020288,2]
[366741223,1750426940247,-460.0,0.00020288,2]
[366741224,1750426940271,-462.19509725,0.00020288,2]
[366741225,1750426940295,-460.0,0.00020288,2]
[366741226,1750426940318,-460.0,0.00020288,2]
[366741227,1750426940498,-460.0,0.00020288,2]
[366741228,1750426940524,-460.0,0.00020288,2]
[366741229,1750426940548,-460.0,0.00020288,2]
[366741230,1750426940572,-460.0,0.00020288,2]
[366741231,1750426940596,-460.0,0.00020288,2]
[366741232,1750426940622,-500.0,0.00020295,2]
[366741233,1750426940646,-500.0,0.00020297,2]
[366741234,1750426940671,-500.0,0.00020297,2]
[366741235,1750426940695,-532.26312975,0.00020297,2]
[366741236,1750426940719,-972.0,0.00020297,2]
[366741237,1750426940743,-672.27121728,0.00020297,2]
[366741238,1750426940776,-299.72878272,0.00020297,2]
[366741239,1750426940800,-972.0,0.00020297,2]
[366741240,1750426940824,-460.0,0.00020298,2]
[366741241,1750426940847,-200.0,0.00020298,10]
[366741242,1750426940870,-200.0,0.00020298,10]
[366741243,1750426940894,-153.023992,0.00020298,10]
[366741244,1750426940918,-972.0,0.00020298,2]
[366741245,1750426940941,-972.0,0.00020392,2]
[366741246,1750426940964,-440.0,0.00020531,2]
[366741247,1750426940988,-853.78,0.00020534,3]
[366741248,1750426941012,-284.59,0.00020535,3]
[366741249,1750426941036,-569.17,0.00020536,3]
[366741250,1750426941059,-460.0,0.00020541,2]
[366741251,1750426941083,-460.0,0.00020541,2]
[366741252,1750426941108,-460.0,0.00020541,2]
[366741253,1750426941132,-460.0,0.00020541,2]
[366741254,1750426941157,-460.0,0.00020541,2]
[366741255,1750426941182,-430.0,0.00020541,2]
[366741256,1750426941207,-460.0,0.00020541,2]
[366741257,1750426941233,-433.70722528,0.00020541,2]
[366741258,1750426941263,-26.29277472,0.00020541,2]
[366741259,1750426941289,-460.0,0.00020541,2]
[366741260,1750426941314,-460.0,0.00020541,2]
[366741261,1750426941339,-460.0,0.00020541,2]
[366741262,1750426941364,-460.0,0.00020541,2]
[366741263,1750426941389,-460.0,0.00020541,2]
[366741264,1750426941412,-676.38,0.00020541,2]
[366741265,1750426941437,-460.0,0.00020541,2]
[366741266,1750426941462,-460.0,0.00020541,2]
[366741267,1750426941488,-1301.25,0.00020541,2]
[366741268,1750426941517,-2377.86,0.00020541,2]
[366741269,1750426941543,-460.0,0.00020541,2]
[366741270,1750426941567,-558.043987,0.00020541,2]
[366741271,1750426941592,-460.0,0.00020541,2]
[366741272,1750426941616,-319.61778017,0.00020541,2]
[366741273,1750426941641,-283.93746776,0.00020541,2]
[366741274,1750426941666,-316.61799035,0.00020541,2]
[366741275,1750426941704,-143.38200965,0.00020541,2]
[366741276,1750426941730,-2246.66,0.00020541,2]
[366741277,1750426941756,-460.0,0.00020541,2]
[366741278,1750426941782,-666.53,0.00020541,2]
[366741279,1750426941806,-460.0,0.00020541,2]
[366741280,1750426941830,-469.75949857,0.00020542,2]
[366741281,1750426941854,-460.0,0.00020543,2]
[366741282,1750426941876,-460.0,0.00020543,2]
[366741283,1750426941899,-430.0,0.00020543,2]
[366741284,1750426941923,-460.0,0.00020543,2]
[366741285,1750426941950,-451.38113053,0.00020543,2]
[366741286,1750426941975,-460.0,0.00020543,2]
[366741287,1750426942001,-2751.96,0.00020543,2]
[366741288,1750426942029,-80.32736125,0.00020543,2]
[366741289,1750426942063,-379.67263875,0.00020543,2]
[366741290,1750426942089,-460.0,0.00020543,2]
[366741291,1750426942115,-2409.77,0.00020543,2]
[366741292,1750426942139,-460.0,0.00020543,2]
[366741293,1750426942163,-460.0,0.00020543,2]
[366741294,1750426942188,-3154.65,0.00020543,2]
[366741295,1750426942214,-1066.82,0.00020543,2]
[366741296,1750426942239,-1458.11,0.00020543,2]
[366741297,1750426942263,-150.97736125,0.00020543,2]
[366741298,1750426942402,-309.02263875,0.00020543,2]
[366741299,1750426942428,-460.0,0.00020543,2]
[366741300,1750426942454,-1331.02,0.00020543,2]
[366741301,1750426942479,-460.0,0.00020543,2]
[366741302,1750426942505,-4418.5,0.00020543,2]
[366741303,1750426942531,-460.0,0.00020543,2]
[366741304,1750426942557,-598.97,0.00020543,2]
[366741305,1750426942587,-503.31,0.00020543,2]
[366741306,1750426942612,-460.0,0.00020543,2]
[366741307,1750426942637,-460.0,0.00020543,2]
[366741308,1750426942662,-539.17736125,0.00020543,2]
[366741309,1750427011687,-160.7540394,0.00019391,2]
[366741310,1750427042092,-168.25984059,0.00019391,2]
[366741311,1750427060816,-2266.23558611,0.00019391,2]
[366741312,1750427061648,-300.0,0.00020257,2]
[366741313,1750427076351,-160.0,0.00020257,2]
[366741314,1750427076375,-22.4150196,0.00020257,2]
[366741315,1750427081222,359.73020325,0.00019341,2]
[366741316,1750427102013,-236.03405117,0.00020257,2]
[366741317,1750427108435,-150.0,0.00020257,2]
[366741319,1750427119018,203.91898168,0.00019659,2]
[366741320,1750427121800,5000.0,0.000201,2]
[366741321,1750427138777,2170.11522896,0.000201,2]
[366741322,1750427138804,2829.88477104,0.000201,2]
[366741323,1750427140126,1122.8204011,0.000189,2]
[366741324,1750427156488,5000.0,0.000201,2]
[366741325,1750427164182,748.54693406,0.000189,2]
[366741326,1750427172306,298.7478938,0.000201,2]
[366741327,1750427172334,4701.2521062,0.000201,2]
[366741328,1750427189340,5000.0,0.000201,2]
[366741329,1750427205820,298.7478938,0.000201,2]
[366741330,1750427205856,4701.2521062,0.000201,2]
[366741331,1750427222364,5000.0,0.000201,2]
[366741332,1750427239322,298.7478938,0.000201,2]
[366741333,1750427239350,4701.2521062,0.000201,2]
[366741334,1750427250439,9670.78,0.00024657,120]
[366741335,1750427256741,5000.0,0.000201,2]
[366741336,1750427266608,188.539002,0.00019269,2]
[366741337,1750427273502,110.2088918,0.000201,2]
[366741338,1750427273531,4889.7911082,0.000201,2]
[366741339,1750427290297,5000.0,0.000201,2]
[366741340,1750427297711,110.2088918,0.000201,2]
[366741341,1750427297737,3742.7911082,0.000201,2]
[366741342,1750427307509,5000.0,0.000201,2]
[366741343,1750427323932,1257.2088918,0.000201,2]
[366741344,1750427323957,3742.7911082,0.000201,2]
[366741345,1750427341048,5000.0,0.000201,2]
[366741346,1750427344662,181.6339895,0.00019268,2]
[366741348,1750427357789,1075.5749023,0.000201,2]
[366741349,1750427357815,3924.4250977,0.000201,2]
[366741350,1750427373913,5000.0,0.000201,2]
[366741351,1750427390367,1075.5749023,0.000201,2]
[366741352,1750427390394,3924.4250977,0.000201,2]
[366741353,1750427406492,5000.0,0.000201,2]
[366741354,1750427423375,1075.5749023,0.000201,2]
[366741355,1750427423402,3924.4250977,0.000201,2]
[366741374,1750427432585,-957.95479972,0.00020255,2]
[366741376,1750427432597,-441.6643337,0.00020255,2]
[366741387,1750427432698,-23600.38086658,0.00020255,2]
[366741389,1750427432708,-932.76737775,0.00020255,2]
[366741391,1750427432718,-162.79,0.00020255,2]
[366741393,1750427432728,-500.0,0.00020255,2]
[366741395,1750427432738,-1688.0,0.00020255,2]
[366741397,1750427432748,-5000.0,0.00020255,2]
[366741399,1750427432758,-500.0,0.00020255,2]
[366741401,1750427432768,-500.0,0.00020255,2]
[366741404,1750427432777,-207.4,0.00020255,2]
[366741406,1750427432787,-500.0,0.00020255,2]
[366741409,1750427432797,-500.0,0.00020255,2]
[366741412,1750427432806,-3469.48344036,0.00020255,2]
[366741415,1750427432817,-51.55092923,0.00020257,2]
[366741418,1750427432826,-434.0784236,0.00020257,2]
[366741421,1750427432836,-300.0,0.0002026,2]
[366741424,1750427432846,-300.0,0.0002026,2]
[366741426,1750427432856,-1200.0,0.0002026,2]
[366741428,1750427432866,-406.42,0.00020261,3]
[366741430,1750427432877,-272.38,0.00020261,3]
[366741432,1750427432887,-817.18,0.00020261,3]
[366741434,1750427432896,-853.34,0.00020261,3]
[366741436,1750427432907,-300.0,0.00020265,2]
[366741438,1750427432916,-500.0,0.00020265,2]
[366741440,1750427432926,-162.50598957,0.00020265,2]
[366741442,1750427432936,-500.0,0.00020265,2]
[366741444,1750427432947,-500.0,0.00020265,2]
[366741446,1750427432957,-500.0,0.00020265,2]
[366741448,1750427432967,-500.0,0.00020265,2]
[366741450,1750427432978,-543.28225255,0.00020265,2]
[366741452,1750427432987,-500.0,0.00020265,2]
[366741454,1750427432997,-500.0,0.00020265,2]
[366741456,1750427433006,-371.67589842,0.00020265,2]
[366741458,1750427433016,-500.0,0.00020265,2]
[366741460,1750427433026,-500.0,0.00020265,2]
[366741461,1750427433036,-500.0,0.00020265,2]
[366741463,1750427433046,-500.0,0.00020265,2]
[366741465,1750427433056,-216.45190983,0.00020265,2]
[366741467,1750427433068,-460.0,0.00020265,2]
[366741469,1750427433078,-460.0,0.00020265,2]
[366741471,1750427433088,-405.44507716,0.00020265,2]
[366741473,1750427433099,-460.0,0.00020265,2]
[366741474,1750427433109,-460.0,0.00020265,2]
[366741476,1750427433119,-460.0,0.00020265,2]
[366741478,1750427433130,-460.0,0.00020265,2]
[366741480,1750427433140,-433.60207133,0.00020266,2]
[366741482,1750427433150,-377.45757993,0.00020266,2]
[366741484,1750427433163,-460.0,0.00020266,2]
[366741486,1750427433173,-279.8693787,0.00020266,2]
[366741488,1750427433183,-460.0,0.00020266,2]
[366741490,1750427433193,-423.6857012,0.00020266,2]
[366741492,1750427433204,-460.0,0.00020266,2]
[366741494,1750427433214,-400.90681113,0.00020266,2]
[366741496,1750427433227,-460.0,0.00020266,2]
[366741498,1750427433237,-468.10705049,0.00020266,2]
[366741500,1750427433248,-419.37062446,0.00020266,2]
[366741502,1750427433259,-438.47439905,0.00020266,2]
[366741504,1750427433269,-468.70407649,0.00020266,2]
[366741506,1750427433279,-573.55779252,0.00020266,2]
[366741509,1750427433290,-460.0,0.00020266,2]
[366741511,1750427433300,-430.0,0.00020266,2]
[366741513,1750427433311,-462.79001107,0.00020266,2]
[366741515,1750427433323,-460.0,0.00020266,2]
[366741517,1750427433334,-460.0,0.00020266,2]
[366741519,1750427433344,-460.0,0.00020266,2]
[366741521,1750427433355,-430.0,0.00020266,2]
[366741523,1750427433365,-456.4004188,0.00020266,2]
[366741525,1750427433375,-440.0,0.00020266,2]
[366741527,1750427433385,-460.0,0.00020266,2]
[366741529,1750427433395,-460.0,0.00020266,2]
[366741531,1750427433405,-460.0,0.00020266,2]
[366741533,1750427433414,-460.0,0.00020266,2]
[366741535,1750427433424,-460.0,0.00020266,2]
[366741537,1750427433434,-266.65501849,0.00020266,2]
[366741539,1750427433444,-460.0,0.00020266,2]
[366741541,1750427433454,-400.0,0.00020266,2]
[366741543,1750427433466,-460.0,0.00020266,2]
[366741545,1750427433477,-460.0,0.00020266,2]
[366741547,1750427433487,-460.0,0.00020266,2]
[366741549,1750427433497,-460.0,0.00020266,2]
[366741551,1750427433506,-460.0,0.00020266,2]
[366741553,1750427433515,-460.0,0.00020266,2]
[366741555,1750427433526,-460.0,0.00020266,2]
[366741557,1750427433535,-453.08105487,0.00020266,2]
[366741559,1750427433544,-460.0,0.00020266,2]
[366741561,1750427433554,-460.0,0.00020266,2]
[366741563,1750427433564,-460.0,0.00020266,2]
[366741565,1750427433574,-430.0,0.00020266,2]
[366741567,1750427433584,-460.0,0.00020266,2]
[366741568,1750427433594,-460.0,0.00020266,2]
[366741571,1750427433604,-460.0,0.00020266,2]
[366741573,1750427433614,-460.0,0.00020266,2]
[366741575,1750427433624,-460.0,0.00020266,2]
[366741576,1750427433634,-406.81670028,0.00020266,2]
[366741578,1750427433643,-460.0,0.00020266,2]
[366741580,1750427433654,-460.0,0.00020266,2]
[366741582,1750427433664,-460.0,0.00020266,2]
[366741584,1750427433674,-460.0,0.00020266,2]
[366741586,1750427433684,-460.0,0.00020266,2]
[366741588,1750427433695,-1224.49,0.00020266,2]
[366741590,1750427433706,-460.0,0.00020266,2]
[366741592,1750427433716,-460.0,0.00020266,2]
[366741593,1750427433726,-413.64970203,0.00020266,2]
[366741594,1750427433736,-2179.71,0.00020266,2]
[366741595,1750427433746,-460.0,0.00020266,2]
[366741596,1750427433756,-460.0,0.00020266,2]
[366741597,1750427433767,-499.75968731,0.00020266,2]
[366741598,1750427433776,-290.0,0.00020266,2]
[366741599,1750427433786,-460.0,0.00020266,2]
[366741600,1750427433804,-460.0,0.00020266,2]
[366741601,1750427433814,-472.5503991,0.00020266,2]
[366741602,1750427433824,-460.0,0.00020266,2]
[366741603,1750427433835,-318.8894706,0.00020266,2]
[366741604,1750427433845,-460.0,0.00020266,2]
[366741605,1750427433855,-2059.44,0.00020266,2]
[366741606,1750427433865,-460.0,0.00020266,2]
[366741607,1750427433875,-460.0,0.00020266,2]
[366741608,1750427433885,-610.98,0.00020266,2]
[366741609,1750427433896,-2522.63,0.00020266,2]
[366741610,1750427433905,-463.65100979,0.00020266,2]
[366741611,1750427433915,-267.28641957,0.00020266,2]
[366741612,1750427433925,-460.0,0.00020266,2]
[366741613,1750427433935,-440.0,0.00020266,2]
[366741614,1750427433945,-460.0,0.00020266,2]
[366741615,1750427433956,-460.0,0.00020266,2]
[366741616,1750427433966,-460.0,0.00020266,2]
[366741617,1750427433976,-460.0,0.00020266,2]
[366741618,1750427433986,-460.0,0.00020266,2]
[366741619,1750427433996,-2208.96,0.00020266,2]
[366741620,1750427434007,-2928.49,0.00020266,2]
[366741621,1750427434017,-500.0,0.00020266,2]
[366741622,1750427434028,-500.0,0.00020266,2]
[366741623,1750427434039,-263.77954985,0.00020266,2]
[366741624,1750427434049,-500.0,0.00020266,2]
[366741625,1750427434059,-500.0,0.00020266,2]
[366741626,1750427434071,-500.0,0.00020266,2]
[366741627,1750427434082,-500.0,0.00020266,2]
[366741628,1750427434093,-500.0,0.00020266,2]
[366741629,1750427434104,-500.0,0.00020266,2]
[366741630,1750427434124,-500.0,0.00020266,2]
[366741631,1750427434140,-500.0,0.00020266,2]
[366741632,1750427434151,-500.0,0.00020266,2]
[366741633,1750427434166,-500.0,0.00020266,2]
[366741634,1750427434177,-500.0,0.00020266,2]
[366741635,1750427434188,-500.0,0.00020266,2]
[366741636,1750427434199,-500.0,0.00020266,2]
[366741637,1750427434210,-500.0,0.00020266,2]
[366741638,1750427434222,-500.0,0.00020266,2]
[366741639,1750427434233,-500.0,0.00020266,2]
[366741640,1750427434245,-500.0,0.00020266,2]
[366741641,1750427434255,-500.0,0.00020266,2]
[366741642,1750427434265,-500.0,0.00020266,2]
[366741643,1750427434276,-500.0,0.00020266,2]
[366741644,1750427434287,-500.0,0.00020266,2]
[366741645,1750427434298,-500.0,0.00020266,2]
[366741646,1750427434308,-500.0,0.00020266,2]
[366741647,1750427434319,-449.03485601,0.00020266,2]
[366741648,1750427434331,-500.0,0.00020266,2]
[366741649,1750427434342,-460.0,0.00020267,2]
[366741650,1750427434353,-460.0,0.00020267,2]
[366741651,1750427434363,-460.0,0.00020267,2]
[366741652,1750427434374,-460.0,0.00020267,2]
[366741653,1750427434384,-300.0,0.00020267,2]
[366741654,1750427434395,-460.0,0.00020267,2]
[366741655,1750427434404,-467.42971707,0.00020267,2]
[366741656,1750427434415,-500.0,0.00020267,2]
[366741657,1750427434425,-460.0,0.00020267,2]
[366741658,1750427434435,-460.0,0.00020267,2]
[366741659,1750427434446,-460.0,0.00020267,2]
[366741660,1750427434456,-460.0,0.00020267,2]
[366741661,1750427434466,-460.0,0.00020267,2]
[366741662,1750427434476,-460.0,0.00020267,2]
[366741663,1750427434487,-460.0,0.00020267,2]
[366741664,1750427434498,-521.2539877,0.00020267,2]
[366741665,1750427434508,-460.0,0.00020267,2]
[366741666,1750427434518,-460.0,0.00020267,2]
[366741667,1750427434528,-460.0,0.00020267,2]
[366741668,1750427434538,-460.0,0.00020267,2]
[366741669,1750427434548,-460.0,0.00020267,2]
[366741670,1750427434559,-428.4482832,0.00020267,2]
[366741671,1750427434569,-460.0,0.00020267,2]
[366741672,1750427434581,-460.0,0.00020267,2]
[366741673,1750427434591,-460.0,0.00020267,2]
[366741674,1750427434601,-460.0,0.00020267,2]
[366741675,1750427434611,-460.0,0.00020267,2]
[366741676,1750427434621,-460.0,0.00020267,2]
[366741677,1750427434631,-407.25070188,0.00020267,2]
[366741678,1750427434641,-460.0,0.00020267,2]
[366741679,1750427434651,-460.0,0.00020267,2]
[366741680,1750427434661,-525.51381006,0.00020267,2]
[366741681,1750427434671,-477.99765194,0.00020267,2]
[366741682,1750427434682,-460.0,0.00020267,2]
[366741683,1750427434692,-485.22,0.00020267,2]
[366741684,1750427434702,-460.0,0.00020267,2]
[366741685,1750427434712,-524.7,0.00020267,2]
[366741686,1750427434723,-460.0,0.00020267,2]
[366741687,1750427434732,-460.0,0.00020267,2]
[366741688,1750427434768,-460.0,0.00020267,2]
[366741689,1750427434778,-460.0,0.00020267,2]
[366741690,1750427434788,-460.0,0.00020267,2]
[366741691,1750427434798,-460.0,0.00020267,2]
[366741692,1750427434809,-460.0,0.00020267,2]
[366741693,1750427434819,-460.0,0.00020267,2]
[366741694,1750427434830,-460.0,0.00020267,2]
[366741695,1750427434839,-460.0,0.00020267,2]
[366741696,1750427434849,-460.0,0.00020267,2]
[366741697,1750427434860,-460.0,0.00020267,2]
[366741698,1750427434870,-460.0,0.00020267,2]
[366741699,1750427434883,-460.0,0.00020267,2]
[366741700,1750427434894,-460.0,0.00020267,2]
[366741701,1750427434905,-430.0,0.00020267,2]
[366741702,1750427434915,-460.0,0.00020267,2]
[366741703,1750427434926,-2708.29,0.00020267,2]
[366741704,1750427434936,-901.59,0.00020267,2]
[366741705,1750427434946,-272.03181056,0.00020267,2]
[366741706,1750427434956,-460.0,0.00020267,2]
[366741707,1750427434966,-460.0,0.00020267,2]
[366741708,1750427434976,-712.98,0.00020267,2]
[366741709,1750427434986,-440.0,0.00020267,2]
[366741710,1750427434996,-1660.52,0.00020267,2]
[366741711,1750427435006,-463.34,0.00020267,2]
[366741712,1750427435016,-460.0,0.00020267,2]
[366741713,1750427435026,-460.0,0.00020267,2]
[366741714,1750427435036,-301.13175758,0.00020267,2]
[366741715,1750427435047,-460.0,0.00020267,2]
[366741716,1750427435057,-460.0,0.00020267,2]
[366741717,1750427435068,-482.14801053,0.00020267,2]
[366741718,1750427435078,-257.75022312,0.00020267,2]
[366741719,1750427435088,-460.0,0.00020267,2]
[366741720,1750427435098,-360.36975692,0.00020267,2]
[366741721,1750427435108,-379.44360529,0.00020267,2]
[366741722,1750427435119,-559.54,0.00020267,2]
[366741723,1750427435128,-460.0,0.00020267,2]
[366741724,1750427435138,-1371.39,0.00020267,2]
[366741725,1750427435148,-460.0,0.00020267,2]
[366741726,1750427435159,-460.0,0.00020267,2]
[366741727,1750427435170,-503.30978917,0.00020267,2]
[366741728,1750427435180,-460.0,0.00020267,2]
[366741729,1750427435190,-581.38,0.00020267,2]
[366741730,1750427435200,-460.0,0.00020267,2]
[366741731,1750427435211,-525.7,0.00020267,2]
[366741732,1750427435411,-581.88,0.00020267,2]
[366741733,1750427435423,-460.0,0.00020267,2]
[366741734,1750427435433,-460.0,0.00020267,2]
[366741735,1750427435444,-432.36805861,0.00020267,2]
[366741736,1750427435454,-460.0,0.00020267,2]
[366741737,1750427435464,-460.0,0.00020267,2]
[366741738,1750427435474,-1289.87,0.00020267,2]
[366741739,1750427435484,-546.99,0.00020267,2]
[366741740,1750427435495,-557.65062108,0.00020267,2]
[366741741,1750427435505,-460.0,0.00020267,2]
[366741742,1750427435515,-440.0,0.00020267,2]
[366741743,1750427435525,-460.0,0.00020267,2]
[366741744,1750427435536,-460.0,0.00020267,2]
[366741745,1750427435546,-460.0,0.00020267,2]
[366741746,1750427435555,-460.0,0.00020267,2]
[366741747,1750427435565,-460.0,0.00020267,2]
[366741748,1750427435576,-460.0,0.00020267,2]
[366741749,1750427435586,-1352.25,0.00020267,2]
[366741750,1750427435596,-460.0,0.00020267,2]
[366741751,1750427435606,-879.89,0.00020267,2]
[366741752,1750427435616,-460.0,0.00020267,2]
[366741753,1750427435626,-460.0,0.00020267,2]
[366741754,1750427435636,-3178.91,0.00020267,2]
[366741755,1750427435646,-460.0,0.00020267,2]
[366741756,1750427435655,-460.0,0.00020267,2]
[366741757,1750427435665,-440.0,0.00020267,2]
[366741758,1750427435674,-1018.97,0.00020267,2]
[366741759,1750427435684,-460.0,0.00020267,2]
[366741760,1750427435694,-460.0,0.00020267,2]
[366741761,1750427435703,-500.0,0.00020268,2]
[366741762,1750427435713,-460.0,0.00020269,2]
[366741763,1750427435723,-460.0,0.00020269,2]
[366741764,1750427435733,-460.0,0.00020269,2]
[366741765,1750427435742,-417.08949347,0.00020269,2]
[366741766,1750427435752,-411.7094612,0.00020269,2]
[366741767,1750427435762,-1106.95,0.00020269,2]
[366741768,1750427435772,-460.0,0.00020269,2]
[366741769,1750427435782,-921.3,0.00020269,2]
[366741770,1750427435792,-460.0,0.00020269,2]
[366741771,1750427435803,-465.47438979,0.0002027,2]
[366741772,1750427435813,-460.0,0.0002027,2]
[366741773,1750427435823,-460.0,0.0002027,2]
[366741774,1750427435832,-460.0,0.0002027,2]
[366741775,1750427435842,-460.0,0.0002027,2]
[366741776,1750427435852,-460.0,0.0002027,2]
[366741777,1750427435862,-460.0,0.0002027,2]
[366741778,1750427435871,-460.0,0.0002027,2]
[366741779,1750427435881,-461.19189548,0.0002027,2]
[366741780,1750427435891,-460.0,0.0002027,2]
[366741781,1750427435901,-460.47395517,0.0002027,2]
[366741782,1750427435910,-460.0,0.0002027,2]
[366741783,1750427435920,-460.0,0.0002027,2]
[366741784,1750427435931,-460.0,0.0002027,2]
[366741785,1750427435940,-514.04780986,0.0002027,2]
[366741786,1750427435950,-460.0,0.0002027,2]
[366741787,1750427435960,-460.0,0.0002027,2]
[366741788,1750427435970,-460.77373895,0.0002027,2]
[366741789,1750427435980,-460.0,0.0002027,2]
[366741790,1750427435989,-460.0,0.0002027,2]
[366741791,1750427435999,-460.0,0.0002027,2]
[366741792,1750427436008,-460.0,0.0002027,2]
[366741793,1750427436018,-460.0,0.0002027,2]
[366741794,1750427436028,-500.0,0.0002027,2]
[366741795,1750427436038,-460.0,0.00020271,2]
[366741796,1750427436049,-507.06040437,0.00020271,2]
[366741797,1750427436058,-460.0,0.00020271,2]